[Event "Fagernes Chess GM-Swiss 2025"]
[Site "Fagernes"]
[Date "2025.04.13"]
[Round "1.1"]
[White "Kantor, Gergely"]
[Black "Hedman, Erik"]
[Result "1-0"]
[Annotator "ChessBase"]
[ECO "C41"]
[WhiteElo "2578"]
[BlackElo "2276"]
[PlyCount "67"]
[EventDate "2025.04.12"]
[EventCountry "NOR"]
[SourceTitle "playchess.com"]
[Source "ChessBase"]
[SourceQuality "1"]
[TimeControl "40/6000+30:2400+30"]

1. e4 {[%emt 0:00:16]} d6 {[%emt 0:00:44]} 2. d4 {[%emt 0:00:11]} Nf6 {[%emt 0:00:06]} 3. Nc3 {[%emt 0:00:10]} e5 {[%emt 0:00:07]} 4. Nf3 {[%emt 0:00:04]} Nbd7 {[%emt 0:00:08]} 5. Rg1 {[%emt 0:01:11]} c6 {[%emt 0:01:11]} 6. g4 {[%emt 0:01:00]} h6 {[%emt 0:01:46]} 7. Be3 {[%emt 0:02:52]} b5 {[%emt 0:02:04]} 8. a3 {[%emt 0:03:07]} a6 {[%emt 0:07:37]} 9. Qe2 {[%emt 0:10:21]} Qc7 {[%emt 0:03:20]} 10. h4 {[%emt 0:10:27]} h5 {[%emt 0:01:29]} 11. gxh5 {[%emt 0:10:51]} Nxh5 {[%emt 0:04:05]} 12. Bh3 {[%emt 0:01:41]} g6 {[%emt 0:02:41]} 13. O-O-O {[%emt 0:03:24]} Ndf6 {[%emt 0:16:52]} 14. Bxc8 {[%emt 0:01:35]} Rxc8 {[%emt 0:00:10]} 15. Rg5 {[%emt 0:18:57]} Nh7 {[%emt 0:03:53]} 16. Rg2 {[%emt 0:02:09]} Be7 {[%emt 0:00:25]} 17. Kb1 {[%emt 0:03:22]} Rd8 {[%emt 0:05:59]} 18. Ng5 {[%emt 0:03:31]} N7f6 {[%emt 0:10:35]} 19. Rgg1 {[%emt 0:03:56]} Rb8 {[%emt 0:08:08]} 20. Qf1 {[%emt 0:02:26]} a5 {[%emt 0:15:05]} 21. b3 {[%emt 0:03:40]} O-O {[%emt 0:00:50]} 22. Qg2 {[%emt 0:04:31]} Qc8 {[%emt 0:00:22]} 23. Nf3 {[%emt 0:02:00]} Qe6 {[%emt 0:03:31]} 24. Bh6 {[%emt 0:03:47]} Ng7 {[%emt 0:04:11]} 25. Ng5 {[%emt 0:02:44]} Qc8 {[%emt 0:00:12]} 26. Ne2 {[%emt 0:07:39]} Nfh5 {[%emt 0:09:09]} 27. Nxf7 {[%emt 0:00:49]} Qe6 {[%emt 0:03:04]} 28. Bxg7 {[%emt 0:02:48]} Rxf7 {[%emt 0:01:35]} 29. Bh6 {[%emt 0:00:33]} Bxh4 {[%emt 0:00:27]} 30. Qxg6+ {[%emt 0:01:01]} Qxg6 {[%emt 0:00:08]} 31. Rxg6+ {[%emt 0:00:02]} Kh7 {[%emt 0:00:20]} 32. Rxd6 {[%emt 0:00:19]} Nf6 {[%emt 0:02:10]} 33. Be3 {[%emt 0:00:52]} Nxe4 {[%emt 0:00:11]} 34. Rh6+ {[%emt 0:00:04]} 1-0

[Event "Fagernes Chess GM-Swiss 2025"]
[Site "Fagernes"]
[Date "2025.04.13"]
[Round "1.2"]
[White "Gandrud, Vegar Koi"]
[Black "Ghosh, Diptayan"]
[Result "1/2-1/2"]
[Annotator "ChessBase"]
[ECO "A14"]
[WhiteElo "2273"]
[BlackElo "2573"]
[PlyCount "158"]
[EventDate "2025.04.12"]
[EventCountry "NOR"]
[SourceTitle "playchess.com"]
[Source "ChessBase"]
[SourceQuality "1"]
[TimeControl "40/6000+30:2400+30"]

1. d4 {[%emt 0:00:03]} Nf6 {[%emt 0:03:36]} 2. c4 {[%emt 0:00:09]} e6 {[%emt 0:00:04]} 3. Nf3 {[%emt 0:00:05]} d5 {[%emt 0:00:49]} 4. g3 {[%emt 0:00:07]} Be7 {[%emt 0:00:13]} 5. Bg2 {[%emt 0:00:16]} O-O {[%emt 0:00:05]} 6. O-O {[%emt 0:00:05]} c6 {[%emt 0:00:14]} 7. Nc3 {[%emt 0:00:34]} a5 {[%emt 0:00:52]} 8. b3 {[%emt 0:05:48]} b6 {[%emt 0:01:40]} 9. Bb2 {[%emt 0:01:04]} Ba6 {[%emt 0:03:11]} 10. a4 {[%emt 0:01:40]} Nbd7 {[%emt 0:09:42]} 11. Nd2 {[%emt 0:02:45]} Bb4 {[%emt 0:04:00]} 12. Qc2 {[%emt 0:38:06]} Rc8 {[%emt 0:04:17]} 13. e4 {[%emt 0:11:17]} dxc4 {[%emt 0:15:56]} 14. bxc4 {[%emt 0:00:22]} e5 {[%emt 0:01:52]} 15. Na2 {[%emt 0:02:19]} Bxd2 {[%emt 0:09:32]} 16. Qxd2 {[%emt 0:02:30]} exd4 {[%emt 0:14:07]} 17. Qxd4 {[%emt 0:08:51]} Nc5 {[%emt 0:01:12]} 18. e5 {[%emt 0:04:59]} Qxd4 {[%emt 0:01:04]} 19. Bxd4 {[%emt 0:00:02]} Nfd7 {[%emt 0:00:47]} 20. Rfb1 {[%emt 0:01:39]} Bxc4 {[%emt 0:10:54]} 21. Bxc5 {[%emt 0:00:51]} Nxc5 {[%emt 0:03:27]} 22. Rxb6 {[%emt 0:00:07]} Nd7 {[%emt 0:03:42]} 23. Rxc6 {[%emt 0:01:30]} Rxc6 {[%emt 0:00:07]} 24. Bxc6 {[%emt 0:00:05]} Nxe5 {[%emt 0:00:03]} 25. Bg2 {[%emt 0:04:44]} Rb8 {[%emt 0:01:31]} 26. Nc3 {[%emt 0:00:20]} Kf8 {[%emt 0:02:07]} 27. Re1 {[%emt 0:07:49]} Nd3 {[%emt 0:02:45]} 28. Re4 {[%emt 0:00:31]} Be6 {[%emt 0:01:00]} 29. Bf1 {[%emt 0:01:56]} Rc8 {[%emt 0:01:18]} 30. Bxd3 {[%emt 0:01:02]} Rxc3 {[%emt 0:00:04]} 31. Rd4 {[%emt 0:00:20]} Rc5 {[%emt 0:05:47]} 32. f4 {[%emt 0:00:56]} h6 {[%emt 0:00:50]} 33. Kf2 {[%emt 0:00:25]} Ke7 {[%emt 0:00:04]} 34. h4 {[%emt 0:01:39]} Rc3 {[%emt 0:05:18]} 35. Ke3 {[%emt 0:05:07]} Ra3 {[%emt 0:00:22]} 36. Ke2 {[%emt 0:04:25]} Ra2+ {[%emt 0:01:46]} 37. Ke3 {[%emt 0:00:21]} Ra3 {[%emt 0:00:03]} 38. Kf2 {[%emt 0:00:54]} Ra2+ {[%emt 0:00:53]} 39. Ke3 {[%emt 0:00:12]} Ra3 {[%emt 0:00:04]} 40. Kf2 {[%emt 0:01:06]} Bd7 {[%emt 0:02:33]} 41. Bb5 {[%emt 0:25:16]} Bxb5 {[%emt 0:03:23]} 42. axb5 {[%emt 0:00:07]} Rb3 {[%emt 0:00:07]} 43. Rc4 {[%emt 0:01:01]} Rxb5 {[%emt 0:03:41]} 44. Rc7+ {[%emt 0:00:05]} Ke6 {[%emt 0:01:22]} 45. Ra7 {[%emt 0:00:55]} h5 {[%emt 0:03:08]} 46. Kg2 {[%emt 0:03:11]} g6 {[%emt 0:02:20]} 47. Kh3 {[%emt 0:02:33]} Rc5 {[%emt 0:00:52]} 48. Kg2 {[%emt 0:00:29]} Rf5 {[%emt 0:08:08]} 49. Kf3 {[%emt 0:00:18]} Rb5 {[%emt 0:11:37]} 50. Kg2 {[%emt 0:01:45]} f6 {[%emt 0:00:30]} 51. Ra6+ {[%emt 0:00:58]} Kf5 {[%emt 0:00:04]} 52. Kh3 {[%emt 0:00:53]} Rc5 {[%emt 0:00:03]} 53. Ra7 {[%emt 0:03:17]} Rd5 {[%emt 0:01:40]} 54. Ra6 {[%emt 0:00:09]} Rb5 {[%emt 0:00:04]} 55. Ra7 {[%emt 0:00:08]} Ke4 {[%emt 0:00:24]} 56. Ra6 {[%emt 0:00:11]} Rf5 {[%emt 0:04:07]} 57. Kg2 {[%emt 0:01:17]} g5 {[%emt 0:03:08]} 58. hxg5 {[%emt 0:01:01]} fxg5 {[%emt 0:00:02]} 59. fxg5 {[%emt 0:00:08]} Rxg5 {[%emt 0:00:02]} 60. Kf2 {[%emt 0:02:23]} Kd3 {[%emt 0:00:10]} 61. Ra8 {[%emt 0:01:46]} Kc4 {[%emt 0:01:35]} 62. Ke2 {[%emt 0:02:37]} Kb3 {[%emt 0:02:27]} 63. Rb8+ {[%emt 0:00:13]} Ka3 {[%emt 0:00:14]} 64. Kd2 {[%emt 0:00:27]} a4 {[%emt 0:00:06]} 65. Rh8 {[%emt 0:00:53]} Kb2 {[%emt 0:00:07]} 66. Rb8+ {[%emt 0:00:28]} Ka2 {[%emt 0:00:38]} 67. Rb4 {[%emt 0:01:18]} a3 {[%emt 0:00:14]} 68. Kc2 {[%emt 0:01:53]} Rxg3 {[%emt 0:00:22]} 69. Rh4 {[%emt 0:00:18]} Rg5 {[%emt 0:05:30]} 70. Kc3 {[%emt 0:00:06]} Rg3+ {[%emt 0:00:39]} 71. Kc2 {[%emt 0:00:09]} Rg2+ {[%emt 0:00:44]} 72. Kc3 {[%emt 0:00:12]} Rg1 {[%emt 0:00:37]} 73. Rxh5 {[%emt 0:00:45]} Kb1 {[%emt 0:00:16]} 74. Rb5+ {[%emt 0:00:30]} Ka1 {[%emt 0:00:06]} 75. Kc2 {[%emt 0:00:30]} Rg2+ {[%emt 0:00:05]} 76. Kc1 {[%emt 0:00:16]} Rb2 {[%emt 0:00:05]} 77. Rc5 {[%emt 0:00:39]} Rb8 {[%emt 0:00:14]} 78. Rc7 {[%emt 0:00:15]} a2 {[%emt 0:00:38]} 79. Kc2 {[%emt 0:00:19]} Ra8 {[%emt 0:02:40]} 1/2-1/2

[Event "Fagernes Chess GM-Swiss 2025"]
[Site "Fagernes"]
[Date "2025.04.13"]
[Round "1.3"]
[White "Gopal G.N."]
[Black "Ostensen, Nicolai Maxime"]
[Result "1-0"]
[Annotator "ChessBase"]
[ECO "C90"]
[WhiteElo "2556"]
[BlackElo "2260"]
[PlyCount "75"]
[EventDate "2025.04.12"]
[EventCountry "NOR"]
[SourceTitle "playchess.com"]
[Source "ChessBase"]
[SourceQuality "1"]
[TimeControl "40/6000+30:2400+30"]

1. e4 {[%emt 0:00:04]} e5 {[%emt 0:00:16]} 2. Nf3 {[%emt 0:00:04]} Nc6 {[%emt 0:00:07]} 3. Bb5 {[%emt 0:00:06]} a6 {[%emt 0:00:12]} 4. Ba4 {[%emt 0:00:04]} Nf6 {[%emt 0:00:06]} 5. O-O {[%emt 0:00:47]} b5 {[%emt 0:00:09]} 6. Bb3 {[%emt 0:00:04]} Be7 {[%emt 0:00:11]} 7. Re1 {[%emt 0:02:41]} O-O {[%emt 0:00:17]} 8. d3 {[%emt 0:12:24]} d6 {[%emt 0:00:40]} 9. c3 {[%emt 0:00:26]} Na5 {[%emt 0:01:10]} 10. Bc2 {[%emt 0:00:04]} c5 {[%emt 0:00:08]} 11. Nbd2 {[%emt 0:00:33]} Nc6 {[%emt 0:00:38]} 12. Nf1 {[%emt 0:03:32]} Re8 {[%emt 0:00:13]} 13. Ng3 {[%emt 0:01:09]} Bf8 {[%emt 0:00:47]} 14. h3 {[%emt 0:02:38]} h6 {[%emt 0:01:15]} 15. d4 {[%emt 0:08:21]} g6 {[%emt 0:09:19]} 16. d5 {[%emt 0:09:00]} Nb8 {[%emt 0:01:26]} 17. a4 {[%emt 0:01:08]} Bb7 {[%emt 0:02:16]} 18. b3 {[%emt 0:11:46]} Nbd7 {[%emt 0:02:10]} 19. Be3 {[%emt 0:00:07]} Qc7 {[%emt 0:02:06]} 20. Qe2 {[%emt 0:05:43]} c4 {[%emt 0:25:13]} 21. bxc4 {[%emt 0:07:04]} bxc4 {[%emt 0:03:21]} 22. a5 {[%emt 0:02:44]} Rab8 {[%emt 0:00:35]} 23. Nd2 {[%emt 0:05:07]} Rec8 {[%emt 0:00:50]} 24. Reb1 {[%emt 0:03:05]} Nc5 {[%emt 0:16:53]} 25. Nxc4 {[%emt 0:06:37]} Nfd7 {[%emt 0:05:12]} 26. Rb4 {[%emt 0:06:43]} f5 {[%emt 0:01:29]} 27. exf5 {[%emt 0:02:43]} Bxd5 {[%emt 0:00:38]} 28. Nb6 {[%emt 0:00:21]} Nxb6 {[%emt 0:00:47]} 29. axb6 {[%emt 0:00:04]} Rxb6 {[%emt 0:00:32]} 30. Rg4 {[%emt 0:04:05]} Bf7 {[%emt 0:02:58]} 31. fxg6 {[%emt 0:00:47]} Be6 {[%emt 0:00:04]} 32. Nf5 {[%emt 0:00:16]} Bg7 {[%emt 0:00:26]} 33. Rh4 {[%emt 0:01:30]} Bxf5 {[%emt 0:00:42]} 34. Bxf5 {[%emt 0:00:06]} Rd8 {[%emt 0:00:57]} 35. Qc4+ {[%emt 0:01:23]} d5 {[%emt 0:01:21]} 36. Qxc5 {[%emt 0:00:21]} Rc6 {[%emt 0:00:04]} 37. Qb4 {[%emt 0:00:50]} d4 {[%emt 0:00:04]} 38. Qb3+ {[%emt 0:01:43]} 1-0

[Event "Fagernes Chess GM-Swiss 2025"]
[Site "Fagernes"]
[Date "2025.04.13"]
[Round "1.4"]
[White "Pang, Ethan"]
[Black "Urkedal, Frode Olav Olsen"]
[Result "0-1"]
[Annotator "ChessBase"]
[ECO "C56"]
[WhiteElo "2257"]
[BlackElo "2550"]
[PlyCount "94"]
[EventDate "2025.04.12"]
[EventCountry "NOR"]
[SourceTitle "playchess.com"]
[Source "ChessBase"]
[SourceQuality "1"]
[TimeControl "40/6000+30:2400+30"]

1. e4 {[%emt 0:00:40]} e5 {[%emt 0:00:05]} 2. Nf3 {[%emt 0:00:19]} Nc6 {[%emt 0:00:03]} 3. Bc4 {[%emt 0:00:27]} Nf6 {[%emt 0:01:18]} 4. d4 {[%emt 0:00:41]} exd4 {[%emt 0:00:07]} 5. O-O {[%emt 0:01:21]} Nxe4 {[%emt 0:00:51]} 6. Re1 {[%emt 0:00:17]} d5 {[%emt 0:00:07]} 7. Bxd5 {[%emt 0:00:29]} Qxd5 {[%emt 0:00:06]} 8. Nc3 {[%emt 0:00:04]} Qh5 {[%emt 0:00:51]} 9. Nxe4 {[%emt 0:00:51]} Be6 {[%emt 0:00:06]} 10. Bg5 {[%emt 0:02:29]} Bd6 {[%emt 0:00:26]} 11. Nxd6+ {[%emt 0:02:08]} cxd6 {[%emt 0:00:03]} 12. Bf4 {[%emt 0:00:15]} Qc5 {[%emt 0:00:09]} 13. Ng5 {[%emt 0:23:54]} O-O {[%emt 0:11:53]} 14. Ne4 {[%emt 0:03:42]} Qf5 {[%emt 0:28:35]} 15. Bxd6 {[%emt 0:10:01]} Rfe8 {[%emt 0:01:14]} 16. Ng3 {[%emt 0:08:10]} Qg6 {[%emt 0:15:05]} 17. Qd3 {[%emt 0:08:07]} Red8 {[%emt 0:08:01]} 18. Ba3 {[%emt 0:08:58]} Qxd3 {[%emt 0:05:18]} 19. cxd3 {[%emt 0:00:35]} b5 {[%emt 0:01:30]} 20. Bc5 {[%emt 0:05:02]} Rd5 {[%emt 0:00:05]} 21. b4 {[%emt 0:01:05]} a5 {[%emt 0:10:26]} 22. a3 {[%emt 0:01:47]} Ne5 {[%emt 0:00:11]} 23. Bb6 {[%emt 0:05:08]} Nxd3 {[%emt 0:03:32]} 24. Red1 {[%emt 0:01:12]} Nb2 {[%emt 0:00:12]} 25. Rxd4 {[%emt 0:00:39]} axb4 {[%emt 0:00:09]} 26. Rxb4 {[%emt 0:01:46]} Nc4 {[%emt 0:00:24]} 27. Be3 {[%emt 0:06:18]} Rxa3 {[%emt 0:00:25]} 28. Rab1 {[%emt 0:00:07]} Nxe3 {[%emt 0:05:25]} 29. fxe3 {[%emt 0:00:22]} Bd7 {[%emt 0:00:12]} 30. R4b3 {[%emt 0:05:21]} Rxb3 {[%emt 0:01:50]} 31. Rxb3 {[%emt 0:00:05]} Rd1+ {[%emt 0:01:52]} 32. Kf2 {[%emt 0:00:07]} Rd2+ {[%emt 0:00:02]} 33. Kf3 {[%emt 0:01:57]} g6 {[%emt 0:00:17]} 34. Ne2 {[%emt 0:01:06]} Bc6+ {[%emt 0:00:48]} 35. e4 {[%emt 0:02:57]} Bxe4+ {[%emt 0:00:16]} 36. Ke3 {[%emt 0:00:08]} Bd5 {[%emt 0:00:05]} 37. Rb4 {[%emt 0:00:48]} Rc2 {[%emt 0:00:32]} 38. Kd3 {[%emt 0:00:39]} Ra2 {[%emt 0:02:23]} 39. Rxb5 {[%emt 0:00:47]} Bxg2 {[%emt 0:00:13]} 40. Ke3 {[%emt 0:00:27]} Bf1 {[%emt 0:00:31]} 41. Rb8+ {[%emt 0:40:05]} Kg7 {[%emt 0:40:04]} 42. Ng3 {[%emt 0:00:06]} Bh3 {[%emt 0:00:12]} 43. Rb4 {[%emt 0:00:42]} h5 {[%emt 0:01:30]} 44. Rh4 {[%emt 0:00:22]} Bg4 {[%emt 0:00:17]} 45. h3 {[%emt 0:00:09]} Be6 {[%emt 0:03:39]} 46. Kf3 {[%emt 0:00:38]} Bd5+ {[%emt 0:00:06]} 47. Ke3 {[%emt 0:00:07]} Ra3+ {[%emt 0:00:03]} 0-1

[Event "Fagernes Chess GM-Swiss 2025"]
[Site "Fagernes"]
[Date "2025.04.13"]
[Round "1.5"]
[White "Jumabayev, Rinat"]
[Black "Oksendal, Martin"]
[Result "1-0"]
[Annotator "ChessBase"]
[ECO "A16"]
[WhiteElo "2549"]
[BlackElo "2250"]
[PlyCount "107"]
[EventDate "2025.04.12"]
[EventCountry "NOR"]
[SourceTitle "playchess.com"]
[Source "ChessBase"]
[SourceQuality "1"]
[TimeControl "40/6000+30:2400+30"]

1. Nf3 {[%emt 0:00:10]} Nf6 {[%emt 0:01:20]} 2. g3 {[%emt 0:00:19]} g6 {[%emt 0:00:14]} 3. Bg2 {[%emt 0:00:41]} Bg7 {[%emt 0:00:06]} 4. c4 {[%emt 0:03:09]} O-O {[%emt 0:03:35]} 5. Nc3 {[%emt 0:01:19]} d5 {[%emt 0:01:30]} 6. cxd5 {[%emt 0:00:13]} Nxd5 {[%emt 0:00:06]} 7. h4 {[%emt 0:00:15]} e5 {[%emt 0:20:53]} 8. Qb3 {[%emt 0:11:52]} Nb6 {[%emt 0:03:27]} 9. d3 {[%emt 0:07:39]} Nc6 {[%emt 0:07:28]} 10. Bg5 {[%emt 0:04:18]} Qe8 {[%emt 0:03:19]} 11. Nb5 {[%emt 0:17:35]} e4 {[%emt 0:13:38]} 12. dxe4 {[%emt 0:00:54]} Qxe4 {[%emt 0:09:10]} 13. Nxc7 {[%emt 0:01:48]} Nd4 {[%emt 0:08:21]} 14. Nxd4 {[%emt 0:01:14]} Qxg2 {[%emt 0:00:13]} 15. Qf3 {[%emt 0:00:29]} Qxf3 {[%emt 0:24:12]} 16. Nxf3 {[%emt 0:00:16]} Rb8 {[%emt 0:00:15]} 17. Be7 {[%emt 0:01:51]} Bd7 {[%emt 0:03:06]} 18. Bxf8 {[%emt 0:05:25]} Rxf8 {[%emt 0:01:56]} 19. O-O {[%emt 0:23:55]} Rc8 {[%emt 0:02:14]} 20. Rac1 {[%emt 0:01:34]} Bc6 {[%emt 0:04:10]} 21. b4 {[%emt 0:01:02]} a6 {[%emt 0:00:55]} 22. Rxc6 {[%emt 0:19:50]} bxc6 {[%emt 0:00:01]} 23. Nxa6 {[%emt 0:00:15]} Ra8 {[%emt 0:00:13]} 24. Nc5 {[%emt 0:00:03]} Rxa2 {[%emt 0:00:07]} 25. Rd1 {[%emt 0:00:25]} Bc3 {[%emt 0:01:23]} 26. Rd8+ {[%emt 0:05:08]} Kg7 {[%emt 0:00:02]} 27. Rb8 {[%emt 0:00:56]} Nd5 {[%emt 0:01:11]} 28. e4 {[%emt 0:00:29]} Nxb4 {[%emt 0:00:37]} 29. Rb7 {[%emt 0:00:21]} Kg8 {[%emt 0:00:41]} 30. Ng5 {[%emt 0:01:26]} Be1 {[%emt 0:00:28]} 31. Nd7 {[%emt 0:00:35]} Bxf2+ {[%emt 0:00:33]} 32. Kf1 {[%emt 0:00:02]} Bxg3 {[%emt 0:00:33]} 33. Nf6+ {[%emt 0:00:44]} Kh8 {[%emt 0:00:00]} 34. Rxf7 {[%emt 0:00:26]} Rf2+ {[%emt 0:00:21]} 35. Kg1 {[%emt 0:00:01]} Rxf6 {[%emt 0:00:19]} 36. Rxf6 {[%emt 0:00:05]} Bxh4 {[%emt 0:00:06]} 37. Rf8+ {[%emt 0:00:18]} Kg7 {[%emt 0:00:05]} 38. Ne6+ {[%emt 0:00:32]} Kh6 {[%emt 0:00:01]} 39. Rf4 {[%emt 0:01:37]} Be7 {[%emt 0:02:06]} 40. Rf7 {[%emt 0:00:33]} Bd6 {[%emt 0:00:22]} 41. Kg2 {[%emt 0:06:18]} Be5 {[%emt 0:04:40]} 42. Kf3 {[%emt 0:06:53]} Nd3 {[%emt 0:05:05]} 43. Rd7 {[%emt 0:02:55]} Nb2 {[%emt 0:05:09]} 44. Nd8 {[%emt 0:20:34]} Nc4 {[%emt 0:10:36]} 45. Nxc6 {[%emt 0:01:01]} g5 {[%emt 0:09:34]} 46. Re7 {[%emt 0:03:40]} Bf6 {[%emt 0:01:04]} 47. Rd7 {[%emt 0:01:48]} Kg6 {[%emt 0:01:21]} 48. Rd5 {[%emt 0:00:07]} h5 {[%emt 0:02:42]} 49. e5 {[%emt 0:00:13]} g4+ {[%emt 0:00:29]} 50. Ke2 {[%emt 0:01:06]} Bh4 {[%emt 0:03:31]} 51. e6 {[%emt 0:00:07]} Nb6 {[%emt 0:00:59]} 52. Re5 {[%emt 0:00:19]} Be7 {[%emt 0:01:06]} 53. Nxe7+ {[%emt 0:00:07]} Kf6 {[%emt 0:00:01]} 54. Nc6 {[%emt 0:00:18]} 1-0

[Event "Fagernes Chess GM-Swiss 2025"]
[Site "Fagernes"]
[Date "2025.04.13"]
[Round "1.6"]
[White "Aamodt, Peder Marcus"]
[Black "Raja Rithvik R"]
[Result "0-1"]
[Annotator "ChessBase"]
[ECO "E04"]
[WhiteElo "2242"]
[BlackElo "2538"]
[PlyCount "80"]
[EventDate "2025.04.12"]
[EventCountry "NOR"]
[SourceTitle "playchess.com"]
[Source "ChessBase"]
[SourceQuality "1"]
[TimeControl "40/6000+30:2400+30"]

1. d4 {[%emt 0:01:32]} d5 {[%emt 0:01:23]} 2. c4 {[%emt 0:00:20]} e6 {[%emt 0:00:03]} 3. Nf3 {[%emt 0:00:28]} Nf6 {[%emt 0:01:25]} 4. g3 {[%emt 0:00:08]} dxc4 {[%emt 0:00:03]} 5. Bg2 {[%emt 0:00:07]} a6 {[%emt 0:00:03]} 6. Ne5 {[%emt 0:03:21]} Bb4+ {[%emt 0:00:25]} 7. Nc3 {[%emt 0:02:23]} Nd5 {[%emt 0:00:26]} 8. O-O {[%emt 0:03:04]} O-O {[%emt 0:00:06]} 9. Ne4 {[%emt 0:00:38]} c3 {[%emt 0:00:06]} 10. Qc2 {[%emt 0:22:03]} cxb2 {[%emt 0:00:18]} 11. Bxb2 {[%emt 0:00:08]} Be7 {[%emt 0:00:41]} 12. Rfc1 {[%emt 0:06:11]} a5 {[%emt 0:07:47]} 13. Nc5 {[%emt 0:05:18]} c6 {[%emt 0:13:00]} 14. e4 {[%emt 0:02:59]} Nf6 {[%emt 0:02:55]} 15. a4 {[%emt 0:05:31]} b6 {[%emt 0:11:26]} 16. Ncd3 {[%emt 0:06:24]} Bb7 {[%emt 0:02:34]} 17. Rd1 {[%emt 0:03:43]} Nfd7 {[%emt 0:09:19]} 18. Rac1 {[%emt 0:08:07]} Ra7 {[%emt 0:22:32]} 19. h4 {[%emt 0:04:56]} Ba8 {[%emt 0:02:53]} 20. Qb3 {[%emt 0:02:14]} Rc7 {[%emt 0:01:27]} 21. d5 {[%emt 0:12:57]} cxd5 {[%emt 0:03:43]} 22. exd5 {[%emt 0:00:41]} Rxc1 {[%emt 0:05:30]} 23. Bxc1 {[%emt 0:12:04]} Bxd5 {[%emt 0:05:49]} 24. Bxd5 {[%emt 0:00:06]} exd5 {[%emt 0:00:02]} 25. Qxd5 {[%emt 0:02:33]} Nxe5 {[%emt 0:00:34]} 26. Nxe5 {[%emt 0:00:22]} Qxd5 {[%emt 0:05:05]} 27. Rxd5 {[%emt 0:00:01]} f6 {[%emt 0:00:43]} 28. Nd3 {[%emt 0:04:30]} Rd8 {[%emt 0:00:16]} 29. Nf4 {[%emt 0:00:12]} Rxd5 {[%emt 0:01:55]} 30. Nxd5 {[%emt 0:00:02]} Bc5 {[%emt 0:00:04]} 31. Bf4 {[%emt 0:01:21]} Nd7 {[%emt 0:00:18]} 32. Kg2 {[%emt 0:00:51]} Kf7 {[%emt 0:02:15]} 33. g4 {[%emt 0:00:10]} Ne5 {[%emt 0:02:50]} 34. g5 {[%emt 0:01:32]} Nc4 {[%emt 0:03:06]} 35. gxf6 {[%emt 0:00:30]} gxf6 {[%emt 0:00:05]} 36. Bc7 {[%emt 0:00:32]} Ke6 {[%emt 0:00:13]} 37. Nc3 {[%emt 0:00:23]} Nb2 {[%emt 0:01:31]} 38. Kf3 {[%emt 0:00:36]} Bb4 {[%emt 0:01:05]} 39. Ne4 {[%emt 0:00:30]} Nxa4 {[%emt 0:00:10]} 40. Bd8 {[%emt 0:00:10]} Be7 {[%emt 0:00:47]} 0-1

[Event "Fagernes Chess GM-Swiss 2025"]
[Site "Fagernes"]
[Date "2025.04.13"]
[Round "1.7"]
[White "Makhnev, Denis"]
[Black "Skotheim, Andreas"]
[Result "1/2-1/2"]
[Annotator "ChessBase"]
[ECO "B36"]
[WhiteElo "2537"]
[BlackElo "2229"]
[PlyCount "114"]
[EventDate "2025.04.12"]
[EventCountry "NOR"]
[SourceTitle "playchess.com"]
[Source "ChessBase"]
[SourceQuality "1"]
[TimeControl "40/6000+30:2400+30"]

1. Nf3 {[%emt 0:00:04]} c5 {[%emt 0:00:40]} 2. c4 {[%emt 0:00:16]} g6 {[%emt 0:00:18]} 3. d4 {[%emt 0:07:01]} cxd4 {[%emt 0:00:21]} 4. Nxd4 {[%emt 0:00:38]} Nc6 {[%emt 0:00:24]} 5. e4 {[%emt 0:01:05]} Nf6 {[%emt 0:00:23]} 6. Nc3 {[%emt 0:00:19]} d6 {[%emt 0:00:26]} 7. Be2 {[%emt 0:01:15]} Nxd4 {[%emt 0:00:31]} 8. Qxd4 {[%emt 0:00:15]} Bg7 {[%emt 0:00:15]} 9. Be3 {[%emt 0:03:15]} O-O {[%emt 0:00:25]} 10. Qd2 {[%emt 0:03:20]} a5 {[%emt 0:03:53]} 11. Rd1 {[%emt 0:16:53]} a4 {[%emt 0:09:42]} 12. f3 {[%emt 0:04:07]} Qa5 {[%emt 0:01:48]} 13. Nb5 {[%emt 0:06:08]} Be6 {[%emt 0:04:38]} 14. Qxa5 {[%emt 0:26:02]} Rxa5 {[%emt 0:00:09]} 15. Nc7 {[%emt 0:00:49]} Nd7 {[%emt 0:01:42]} 16. Nxe6 {[%emt 0:00:56]} fxe6 {[%emt 0:00:12]} 17. Rb1 {[%emt 0:00:05]} Rc8 {[%emt 0:06:54]} 18. O-O {[%emt 0:02:12]} Ne5 {[%emt 0:08:10]} 19. f4 {[%emt 0:03:37]} Nc6 {[%emt 0:19:56]} 20. Bg4 {[%emt 0:03:42]} Kf7 {[%emt 0:02:59]} 21. e5 {[%emt 0:00:40]} Nd8 {[%emt 0:10:08]} 22. b4 {[%emt 0:01:45]} axb3 {[%emt 0:01:31]} 23. axb3 {[%emt 0:00:07]} dxe5 {[%emt 0:03:32]} 24. Bb6 {[%emt 0:00:48]} Ra6 {[%emt 0:01:05]} 25. fxe5+ {[%emt 0:00:07]} Ke8 {[%emt 0:00:39]} 26. Bf2 {[%emt 0:06:33]} Bxe5 {[%emt 0:02:11]} 27. c5 {[%emt 0:00:39]} Ra2 {[%emt 0:02:03]} 28. b4 {[%emt 0:03:11]} Rd2 {[%emt 0:06:45]} 29. Kh1 {[%emt 0:05:51]} Bd4 {[%emt 0:04:34]} 30. Be1 {[%emt 0:02:36]} Rc2 {[%emt 0:00:52]} 31. Rf4 {[%emt 0:01:03]} Bf6 {[%emt 0:04:12]} 32. Rf2 {[%emt 0:04:05]} Rxf2 {[%emt 0:04:02]} 33. Bxf2 {[%emt 0:00:07]} Ra8 {[%emt 0:01:04]} 34. Kg1 {[%emt 0:01:47]} Ra1 {[%emt 0:03:29]} 35. Rxa1 {[%emt 0:00:08]} Bxa1 {[%emt 0:00:06]} 36. b5 {[%emt 0:01:26]} Kd7 {[%emt 0:03:45]} 37. Kf1 {[%emt 0:00:16]} Kc7 {[%emt 0:03:43]} 38. Ke2 {[%emt 0:00:46]} Be5 {[%emt 0:01:25]} 39. h4 {[%emt 0:00:58]} Kd7 {[%emt 0:00:26]} 40. Kd3 {[%emt 0:01:02]} Bf4 {[%emt 0:00:31]} 41. Bf3 {[%emt 0:08:45]} Kc8 {[%emt 0:14:06]} 42. Ke4 {[%emt 0:01:38]} Bc1 {[%emt 0:01:37]} 43. Bg3 {[%emt 0:13:41]} Ba3 {[%emt 0:03:18]} 44. Kd4 {[%emt 0:01:28]} Bb2+ {[%emt 0:00:46]} 45. Kc4 {[%emt 0:00:27]} Nf7 {[%emt 0:02:42]} 46. b6 {[%emt 0:00:42]} Ne5+ {[%emt 0:03:39]} 47. Kb5 {[%emt 0:00:06]} Nxf3 {[%emt 0:02:58]} 48. gxf3 {[%emt 0:00:05]} e5 {[%emt 0:00:46]} 49. c6 {[%emt 0:00:58]} Bd4 {[%emt 0:01:06]} 50. Be1 {[%emt 0:00:40]} Be3 {[%emt 0:02:30]} 51. Bb4 {[%emt 0:00:39]} g5 {[%emt 0:02:41]} 52. Bxe7 {[%emt 0:04:26]} gxh4 {[%emt 0:01:58]} 53. Bxh4 {[%emt 0:00:08]} h5 {[%emt 0:00:25]} 54. c7 {[%emt 0:00:12]} Kd7 {[%emt 0:01:48]} 55. Ka5 {[%emt 0:00:04]} Kc8 {[%emt 0:00:14]} 56. Kb5 {[%emt 0:00:03]} Kd7 {[%emt 0:00:06]} 57. Ka5 {[%emt 0:00:03]} Kc8 {[%emt 0:00:06]} 1/2-1/2